lending/lending_fUSD_20250429
["ID","MTS","AMOUNT","RATE_DAILY","PERIOD"]
[359286495,1745893213534,1318.56,0.00038356,30]
[359286496,1745893213770,234.58753438,0.00038356,30]
[359286497,1745893214134,470.0,0.00038356,30]
[359286498,1745893215556,470.0,0.00038356,30]
[359286499,1745893217142,470.0,0.00038356,30]
[359286500,1745893217475,470.0,0.00038356,30]
[359286501,1745893218538,534.45,0.00038356,30]
[359286502,1745893219279,470.0,0.00038356,30]
[359286503,1745893219561,470.0,0.00038356,30]
[359286504,1745893221980,470.0,0.00038356,30]
[359286505,1745893223267,470.0,0.00038356,30]
[359286506,1745893223410,1731.59,0.00038356,30]
[359286507,1745893223691,470.0,0.00038356,30]
[359286508,1745893224130,470.0,0.00038356,30]
[359286509,1745893224171,470.0,0.00038356,30]
[359286510,1745893225230,470.0,0.00038356,30]
[359286511,1745893225324,470.0,0.00038356,30]
[359286512,1745893225370,995.28,0.00038356,30]
[359286513,1745893226603,1189.13,0.00038356,30]
[359286514,1745893227554,470.0,0.00038356,30]
[359286515,1745893228333,470.0,0.00038356,30]
[359286516,1745893228586,470.0,0.00038356,30]
[359286517,1745893228620,470.0,0.00038356,30]
[359286518,1745893228928,470.0,0.00038356,30]
[359286519,1745893229019,633.84,0.00038356,30]
[359286520,1745893229934,470.0,0.00038356,30]
[359286521,1745893230495,470.0,0.00038356,30]
[359286522,1745893232395,470.0,0.00038356,30]
[359286523,1745893232490,470.0,0.00038356,30]
[359286524,1745893232538,673.74,0.00038356,30]
[359286525,1745893232595,470.0,0.00038356,30]
[359286526,1745893233847,928.31,0.00038356,30]
[359286527,1745893233922,470.0,0.00038356,30]
[359286528,1745893234448,1586.82,0.00038356,30]
[359286529,1745893234479,470.0,0.00038356,30]
[359286530,1745893234745,470.0,0.00038356,30]
[359286531,1745893235290,498.99,0.00038356,30]
[359286532,1745893236988,2918.72,0.00038356,30]
[359286533,1745893237151,470.0,0.00038356,30]
[359286534,1745893237276,470.0,0.00038356,30]
[359286535,1745893237512,470.0,0.00038356,30]
[359286536,1745893238309,496.75,0.00038356,30]
[359286537,1745893238486,470.0,0.00038356,30]
[359286538,1745893239264,502.74,0.00038356,30]
[359286539,1745893239722,470.0,0.00038356,30]
[359286540,1745893240953,478.76,0.00038356,30]
[359286541,1745893241013,500.0,0.00038356,30]
[359286542,1745893241260,500.0,0.00038356,30]
[359286543,1745893241379,596.31,0.00038356,30]
[359286544,1745893241550,500.0,0.00038356,30]
[359286545,1745893241855,500.0,0.00038356,30]
[359286546,1745893242095,500.0,0.00038356,30]
[359286547,1745893242150,519.68,0.00038356,30]
[359286548,1745893242340,502.07991261,0.00038356,30]
[359286549,1745893242791,509.90594317,0.00038356,30]
[359286550,1745893243410,777.67,0.00038356,30]
[359286551,1745893243629,555.51,0.00038356,30]
[359286552,1745893244713,470.0,0.00038356,30]
[359286553,1745893244928,470.0,0.00038356,30]
[359286554,1745893245158,470.0,0.00038356,30]
[359286555,1745893245656,470.0,0.00038356,30]
[359286556,1745893245882,470.0,0.00038356,30]
[359286557,1745893246492,535.23,0.00038356,30]
[359286558,1745893247389,2701.73,0.00038356,30]
[359286559,1745893247429,639.47,0.00038356,30]
[359286560,1745893248088,470.0,0.00038356,30]
[359286561,1745893248415,669.17,0.00038356,30]
[359286562,1745893248814,470.0,0.00038356,30]
[359286563,1745893249750,470.0,0.00038356,30]
[359286564,1745893251694,470.0,0.00038356,30]
[359286565,1745893252324,470.0,0.00038356,30]
[359286566,1745893253268,635.24,0.00038356,30]
[359286567,1745893253401,470.0,0.00038356,30]
[359286568,1745893255888,470.0,0.00038356,30]
[359286569,1745893256262,470.0,0.00038356,30]
[359286570,1745893256973,602.95,0.00038356,30]
[359286571,1745893257153,470.0,0.00038356,30]
[359286572,1745893257994,716.0,0.00038356,30]
[359286573,1745893258040,470.0,0.00038356,30]
[359286574,1745893258977,723.62,0.00038356,30]
[359286575,1745893259849,689.49918464,0.00038356,30]
[359286576,1745893259988,470.0,0.00038356,30]
[359286577,1745893261652,470.0,0.00038356,30]
[359286578,1745893261812,470.0,0.00038356,30]
[359286579,1745893261898,470.0,0.00038356,30]
[359286580,1745893262780,531.7,0.00038356,30]
[359286581,1745893263338,470.0,0.00038356,30]
[359286582,1745893263477,867.44,0.00038356,30]
[359286583,1745893263877,1539.4,0.00038356,30]
[359286584,1745893265361,470.0,0.00038356,30]
[359286585,1745893265491,470.0,0.00038356,30]
[359286586,1745893265678,470.0,0.00038356,30]
[359286587,1745893266154,470.0,0.00038356,30]
[359286588,1745893266440,555.0,0.00038356,30]
[359286589,1745893269928,536.63,0.00038356,30]
[359286590,1745893270095,534.14,0.00038356,30]
[359286591,1745893270982,227.7869248,0.00038356,30]
[359286592,1745893271330,633.51,0.00038356,30]
[359286593,1745893272940,470.0,0.00038356,30]
[359286594,1745893273388,470.0,0.00038356,30]
[359286595,1745893273447,999.13,0.00038356,30]
[359286596,1745893274850,470.0,0.00038356,30]
[359286597,1745893276249,470.0,0.00038356,30]
[359286598,1745893278138,963.6,0.00038356,30]
[359286599,1745893278335,1132.45,0.00038356,30]
[359286600,1745893279966,470.0,0.00038356,30]
[359286601,1745893280098,480.24,0.00038356,30]
[359286602,1745893280742,169.57461258,0.00038356,30]
[359286603,1745893282255,769.59,0.00038356,30]
[359286604,1745893282375,470.0,0.00038356,30]
[359286605,1745893282491,470.0,0.00038356,30]
[359286606,1745893283164,596.61,0.00038356,30]
[359286607,1745893285073,972.05,0.00038356,30]
[359286608,1745893285111,510.98097141,0.00038356,30]
[359286609,1745893286094,470.0,0.00038356,30]
[359286610,1745893286527,470.0,0.00038356,30]
[359286611,1745893286944,520.14,0.00038356,30]
[359286612,1745893289161,470.0,0.00038356,30]
[359286613,1745893290399,470.0,0.00038356,30]
[359286614,1745893291024,583.01,0.00038356,30]
[359286615,1745893292304,474.52,0.00038356,30]
[359286616,1745893292336,470.0,0.00038356,30]
[359286617,1745893293564,608.51,0.00038356,30]
[359286618,1745893294096,470.0,0.00038356,30]
[359286619,1745893295048,470.0,0.00038356,30]
[359286620,1745893295786,470.0,0.00038356,30]
[359286621,1745893295816,470.0,0.00038356,30]
[359286622,1745893297522,470.0,0.00038356,30]
[359286623,1745893299129,470.0,0.00038356,30]
[359286624,1745893299775,470.0,0.00038356,30]
[359286625,1745893300096,470.0,0.00038356,30]
[359286626,1745893300519,470.0,0.00038356,30]
[359286627,1745893300902,470.0,0.00038356,30]
[359286628,1745893301330,470.0,0.00038356,30]
[359286629,1745893302267,470.0,0.00038356,30]
[359286630,1745893305294,470.0,0.00038356,30]
[359286631,1745893305399,470.0,0.00038356,30]
[359286632,1745893305471,470.0,0.00038356,30]
[359286633,1745893306380,660.94,0.00038356,30]
[359286634,1745893306800,470.0,0.00038356,30]
[359286635,1745893307475,470.0,0.00038356,30]
[359286636,1745893307687,470.0,0.00038356,30]
[359286637,1745893308017,470.0,0.00038356,30]
[359286638,1745893308048,562.31,0.00038356,30]
[359286639,1745893308407,585.22,0.00038356,30]
[359286640,1745893309956,554.23,0.00038356,30]
[359286641,1745893310649,508.5,0.00038356,30]
[359286642,1745893311147,300.0,0.00038356,30]
[359286643,1745893311249,470.0,0.00038356,30]
[359286644,1745893312536,6631.66,0.00038356,30]
[359286645,1745893312674,470.0,0.00038356,30]
[359286646,1745893316060,470.0,0.00038356,30]
[359286647,1745893316487,470.0,0.00038356,30]
[359286648,1745893316933,470.0,0.00038356,30]
[359286649,1745893318006,470.0,0.00038356,30]
[359286650,1745893318120,43700.53,0.00038356,30]
[359286651,1745893318755,610.46,0.00038356,30]
[359286652,1745893321959,470.0,0.00038356,30]
[359286653,1745893322650,641.43,0.00038356,30]
[359286654,1745893323723,470.0,0.00038356,30]
[359286655,1745893323965,470.0,0.00038356,30]
[359286656,1745893325678,470.0,0.00038356,30]
[359286657,1745893326219,470.0,0.00038356,30]
[359286658,1745893327570,470.0,0.00038356,30]
[359286659,1745893328909,470.0,0.00038356,30]
[359286660,1745893331921,470.0,0.00038356,30]
[359286661,1745893332371,470.0,0.00038356,30]
[359286662,1745893332980,470.0,0.00038356,30]
[359286663,1745893333013,811.44,0.00038356,30]
[359286664,1745893333258,470.0,0.00038356,30]
[359286665,1745893333592,470.0,0.00038356,30]
[359286666,1745893333845,486.87,0.00038356,30]
[359286667,1745893335041,470.0,0.00038356,30]
[359286668,1745893335476,6273.96,0.00038356,30]
[359286669,1745893336098,4185.78,0.00038356,30]
[359286670,1745893337057,470.0,0.00038356,30]
[359286671,1745893337661,470.0,0.00038356,30]
[359286672,1745893337748,470.0,0.00038356,30]
[359286673,1745893339409,518.19,0.00038356,30]
[359286674,1745893339952,522.28,0.00038356,30]
[359286675,1745893340701,470.0,0.00038356,30]
[359286676,1745893341624,470.0,0.00038356,30]
[359286677,1745893341659,1121.92,0.00038356,30]
[359286678,1745893342024,470.0,0.00038356,30]
[359286679,1745893343013,470.0,0.00038356,30]
[359286680,1745893343401,508.13,0.00038356,30]
[359286681,1745893343437,470.0,0.00038356,30]
[359286682,1745893343770,586.06,0.00038356,30]
[359286683,1745893343974,3498.51,0.00038356,30]
[359286684,1745893344677,470.0,0.00038356,30]
[359286685,1745893345071,550.17,0.00038356,30]
[359286686,1745893345344,470.0,0.00038356,30]
[359286687,1745893346292,470.0,0.00038356,30]
[359286688,1745893346593,470.0,0.00038356,30]
[359286689,1745893347322,535.93,0.00038356,30]
[359286690,1745893348474,470.0,0.00038356,30]
[359286691,1745893349316,470.0,0.00038356,30]
[359286692,1745893349680,470.0,0.00038356,30]
[359286693,1745893351017,470.0,0.00038356,30]
[359286694,1745893351940,636.88,0.00038356,30]
[359286695,1745893352020,1052.95,0.00038356,30]
[359286696,1745893353323,470.0,0.00038356,30]
[359286697,1745893353578,470.0,0.00038356,30]
[359286698,1745893354883,470.0,0.00038356,30]
[359286699,1745893355803,470.0,0.00038356,30]
[359286700,1745893356223,470.0,0.00038356,30]
[359286701,1745893356679,470.0,0.00038356,30]
[359286702,1745893359691,470.0,0.00038356,30]
[359286703,1745893359894,470.0,0.00038356,30]
[359286704,1745893360291,482.77,0.00038356,30]
[359286705,1745893360860,302.09398028,0.00038356,30]
[359286706,1745893361023,470.0,0.00038356,30]
[359286707,1745893361676,11752.91,0.00038356,30]
[359286708,1745893362407,470.0,0.00038356,30]
[359286709,1745893362474,627.37,0.00038356,30]
[359286710,1745893362931,470.0,0.00038356,30]
[359286711,1745893363344,470.0,0.00038356,30]
[359286712,1745893364237,552.07,0.00038356,30]
[359286713,1745893364827,502.28,0.00038356,30]
[359286714,1745893366202,470.0,0.00038356,30]
[359286715,1745893366231,2434.29,0.00038356,30]
[359286716,1745893366411,487.07,0.00038356,30]
[359286717,1745893366875,580.21,0.00038356,30]
[359286718,1745893368602,472.27,0.00038356,30]
[359286719,1745893370700,945.59,0.00038356,30]
[359286720,1745893374091,470.0,0.00038356,30]
[359286721,1745893374386,470.0,0.00038356,30]
[359286722,1745893374707,470.0,0.00038356,30]
[359286724,1745893375258,527.42,0.00038356,30]
[359286725,1745893375612,470.0,0.00038356,30]
[359286726,1745893377398,470.0,0.00038356,30]
[359286727,1745893377946,12888.86,0.00038356,30]
[359286728,1745893378169,470.0,0.00038356,30]
[359286729,1745893378868,470.0,0.00038356,30]
[359286730,1745893378949,470.0,0.00038356,30]
[359286731,1745893379170,682.19,0.00038356,30]
[359286732,1745893379941,1225.88,0.00038356,30]
[359286733,1745893382556,470.0,0.00038356,30]
[359286734,1745893382587,470.0,0.00038356,30]
[359286735,1745893384155,470.0,0.00038356,30]
[359286736,1745893384920,470.0,0.00038356,30]
[359286737,1745893385022,649.03,0.00038356,30]
[359286738,1745893385071,470.0,0.00038356,30]
[359286739,1745893385346,470.0,0.00038356,30]
[359286740,1745893385600,470.0,0.00038356,30]
[359286741,1745893386202,470.0,0.00038356,30]
[359286742,1745893391165,610.67,0.00038356,30]
[359286743,1745893391425,470.0,0.00038356,30]
[359286744,1745893392798,470.0,0.00038356,30]
[359286745,1745893392874,626.61,0.00038356,30]
[359286746,1745893393137,370.13333565,0.00038356,30]
[359286747,1745893394604,470.0,0.00038356,30]
[359286748,1745893394947,470.0,0.00038356,30]
[359286749,1745893395373,470.0,0.00038356,30]
[359286750,1745893396117,470.0,0.00038356,30]
[359286751,1745893397101,470.0,0.00038356,30]
[359286752,1745893398584,470.0,0.00038356,30]
[359286753,1745893399356,1236.79,0.00038356,30]
[359286754,1745893400225,553.69,0.00038356,30]
[359286755,1745893400355,470.0,0.00038356,30]
[359286756,1745893400920,470.0,0.00038356,30]
[359286757,1745893401317,470.0,0.00038356,30]
[359286758,1745893401409,470.0,0.00038356,30]
[359286759,1745893401775,10000.0,0.00038356,30]
[359286760,1745893402417,470.0,0.00038356,30]
[359286761,1745893402906,10000.0,0.00038356,30]
[359286762,1745893403186,470.0,0.00038356,30]
[359286763,1745893403298,470.0,0.00038356,30]
[359286764,1745893403609,10000.0,0.00038356,30]
[359286765,1745893404194,470.0,0.00038356,30]
[359286766,1745893404362,470.0,0.00038356,30]
[359286767,1745893404656,10000.0,0.00038356,30]
[359286768,1745893405748,10000.0,0.00038356,30]
[359286769,1745893406350,10000.0,0.00038356,30]
[359286770,1745893407259,10000.0,0.00038356,30]
[359286771,1745893408228,10000.0,0.00038356,30]
[359286772,1745893408923,10000.0,0.00038356,30]
[359286773,1745893409275,470.0,0.00038356,30]
[359286774,1745893409322,470.0,0.00038356,30]
[359286775,1745893409730,10000.0,0.00038356,30]
[359286776,1745893410322,470.0,0.00038356,30]
[359286777,1745893410352,470.0,0.00038356,30]
[359286778,1745893410476,785.96,0.00038356,30]
[359286779,1745893410693,10000.0,0.00038356,30]
[359286780,1745893410848,1778.14,0.00038356,30]
[359286781,1745893411440,10000.0,0.00038356,30]
[359286782,1745893411946,470.0,0.00038356,30]
[359286783,1745893411976,470.0,0.00038356,30]
[359286784,1745893412292,10000.0,0.00038356,30]
[359286785,1745893413110,470.0,0.00038356,30]
[359286786,1745893413375,10000.0,0.00038356,30]
[359286787,1745893414654,10000.0,0.00038356,30]
[359286788,1745893415742,470.0,0.00038356,30]
[359286789,1745893417356,470.0,0.00038356,30]
[359286790,1745893418788,470.0,0.00038356,30]
[359286791,1745893418827,470.0,0.00038356,30]
[359286792,1745893418865,770.16,0.00038356,30]
[359286793,1745893420263,470.0,0.00038356,30]
[359286794,1745893423528,470.0,0.00038356,30]
[359286795,1745893425332,2528.25,0.00038356,30]
[359286796,1745893425586,470.0,0.00038356,30]
[359286797,1745893425833,470.0,0.00038356,30]
[359286798,1745893426014,631.47,0.00038356,30]
[359286799,1745893426214,661.89,0.00038356,30]
[359286800,1745893426844,470.0,0.00038356,30]
[359286801,1745893427762,470.0,0.00038356,30]
[359286802,1745893428618,470.0,0.00038356,30]
[359286803,1745893429362,591.41,0.00038356,30]
[359286804,1745893432738,470.0,0.00038356,30]
[359286805,1745893434062,498.99,0.00038356,30]
[359286806,1745893434280,642.74,0.00038356,30]
[359286807,1745893434333,780.98,0.00038356,30]
[359286808,1745893434403,470.0,0.00038356,30]
[359286809,1745893435397,470.0,0.00038356,30]
[359286810,1745893435433,386.31425341,0.00038356,30]
[359286811,1745893437247,845.93,0.00038356,30]
[359286812,1745893437497,478.2,0.00038356,30]
[359286813,1745893437608,742.47,0.00038356,30]
[359286814,1745893437797,530.97,0.00038356,30]
[359286815,1745893441300,470.0,0.00038356,30]
[359286816,1745893442013,470.0,0.00038356,30]
[359286817,1745893442086,470.0,0.00038356,30]
[359286818,1745893442490,470.0,0.00038356,30]
[359286819,1745893442721,470.0,0.00038356,30]
[359286820,1745893445273,470.0,0.00038356,30]
[359286821,1745893446084,470.0,0.00038356,30]
[359286822,1745893446194,481.79,0.00038356,30]
[359286823,1745893447023,470.0,0.00038356,30]
[359286824,1745893447152,470.0,0.00038356,30]
[359286825,1745893447699,470.0,0.00038356,30]
[359286826,1745893448340,470.0,0.00038356,30]
[359286827,1745893449535,470.0,0.00038356,30]
[359286828,1745893451394,470.0,0.00038356,30]
[359286829,1745893453050,476.05,0.00038356,30]
[359286830,1745893453400,3582.3,0.00038356,30]
[359286831,1745893453434,663.5,0.00038356,30]
[359286832,1745893453723,470.0,0.00038356,30]
[359286833,1745893454460,470.0,0.00038356,30]
[359286834,1745893458272,470.0,0.00038356,30]
[359286835,1745893460393,532.42,0.00038356,30]
[359286836,1745893460908,617.24,0.00038356,30]
[359286837,1745893461684,512.93,0.00038356,30]
[359286838,1745893462026,470.0,0.00038356,30]
[359286839,1745893462063,863.53,0.00038356,30]
[359286840,1745893462790,470.0,0.00038356,30]
[359286841,1745893463186,509.98,0.00038356,30]
[359286842,1745893465140,470.0,0.00038356,30]
[359286843,1745893465771,470.0,0.00038356,30]
[359286844,1745893467058,470.0,0.00038356,30]
[359286845,1745893467160,470.0,0.00038356,30]
[359286846,1745893468114,470.0,0.00038356,30]
[359286847,1745893469224,614.43,0.00038356,30]
[359286848,1745893469408,470.0,0.00038356,30]
[359286849,1745893471230,470.0,0.00038356,30]
[359286850,1745893471270,770.41,0.00038356,30]
[359286851,1745893471363,470.0,0.00038356,30]
[359286852,1745893471730,470.0,0.00038356,30]
[359286853,1745893472516,470.0,0.00038356,30]
[359286854,1745893475048,470.0,0.00038356,30]
[359286855,1745893475211,470.0,0.00038356,30]
[359286856,1745893475272,470.0,0.00038356,30]
[359286857,1745893475760,1659.44,0.00038356,30]
[359286858,1745893476397,470.0,0.00038356,30]
[359286859,1745893476964,2797.11,0.00038356,30]
[359286860,1745893480008,295.71102795,0.00038356,30]
[359286861,1745893480319,470.0,0.00038356,30]
[359286862,1745893481673,470.0,0.00038356,30]
[359286863,1745893482815,509.55,0.00038356,30]
[359286864,1745893483241,1085.26,0.00038356,30]
[359286865,1745893483613,470.0,0.00038356,30]
[359286866,1745893484621,470.0,0.00038356,30]
[359286867,1745893486161,470.0,0.00038356,30]
[359286868,1745893486221,645.66,0.00038356,30]
[359286869,1745893486307,607.43,0.00038356,30]
[359286870,1745893487163,470.0,0.00038356,30]
[359286871,1745893488317,470.0,0.00038356,30]
[359286872,1745893489687,470.0,0.00038356,30]
[359286873,1745893489751,746.46,0.00038356,30]
[359286874,1745893490209,470.0,0.00038356,30]
[359286875,1745893491884,607.11,0.00038356,30]
[359286876,1745893494206,470.0,0.00038356,30]
[359286877,1745893494652,470.0,0.00038356,30]
[359286878,1745893495985,470.0,0.00038356,30]
[359286879,1745893496180,470.0,0.00038356,30]
[359286880,1745893496699,470.0,0.00038356,30]
[359286881,1745893498188,470.0,0.00038356,30]
[359286882,1745893498715,470.0,0.00038356,30]
[359286883,1745893498755,889.63,0.00038356,30]
[359286884,1745893498923,470.0,0.00038356,30]
[359286885,1745893499392,745.27,0.00038356,30]
[359286886,1745893499737,470.0,0.00038356,30]
[359286887,1745893499901,641.29,0.00038356,30]
[359286888,1745893500928,308.64240121,0.00038356,30]
[359286889,1745893503686,470.0,0.00038356,30]
[359286890,1745893506384,470.0,0.00038356,30]
[359286891,1745893506605,553.0,0.00038356,30]
[359286892,1745893506687,470.0,0.00038356,30]
[359286893,1745893506729,470.0,0.00038356,30]
[359286894,1745893506809,470.0,0.00038356,30]
[359286895,1745893507340,470.0,0.00038356,30]
[359286896,1745893508401,470.0,0.00038356,30]
[359286897,1745893509170,470.0,0.00038356,30]
[359286898,1745893509207,470.0,0.00038356,30]
[359286899,1745893509478,470.0,0.00038356,30]
[359286900,1745893509811,470.0,0.00038356,30]
[359286901,1745893510269,470.0,0.00038356,30]
[359286902,1745893512632,2589.16,0.00038356,30]
[359286903,1745893513541,470.0,0.00038356,30]
[359286904,1745893513786,686.16,0.00038356,30]
[359286905,1745893513949,470.0,0.00038356,30]
[359286906,1745893514311,470.0,0.00038356,30]
[359286907,1745893516036,470.0,0.00038356,30]
[359286908,1745893517339,538.88,0.00038356,30]
[359286909,1745893517802,470.0,0.00038356,30]
[359286910,1745893518766,470.0,0.00038356,30]
[359286911,1745893520689,470.0,0.00038356,30]
[359286912,1745893520798,409.9896272,0.00038356,30]
[359286913,1745893522831,470.0,0.00038356,30]
[359286914,1745893522868,2005.01,0.00038356,30]
[359286915,1745893522907,531.88,0.00038356,30]
[359286916,1745893524262,784.03,0.00038356,30]
[359286917,1745893524612,470.0,0.00038356,30]
[359286918,1745893525006,470.0,0.00038356,30]
[359286919,1745893526288,470.0,0.00038356,30]
[359286920,1745893528638,470.0,0.00038356,30]
[359286921,1745893529874,470.0,0.00038356,30]
[359286922,1745893530573,470.0,0.00038356,30]
[359286923,1745893530858,1475.26,0.00038356,30]
[359286924,1745893531632,470.0,0.00038356,30]
[359286925,1745893533060,470.0,0.00038356,30]
[359286926,1745893533921,470.0,0.00038356,30]
[359286927,1745893534296,470.0,0.00038356,30]
[359286928,1745893534374,923.45,0.00038356,30]
[359286929,1745893537392,822.22,0.00038356,30]
[359286930,1745893537614,470.0,0.00038356,30]
[359286931,1745893537861,470.0,0.00038356,30]
[359286932,1745893538747,470.0,0.00038356,30]
[359286933,1745893538783,470.0,0.00038356,30]
[359286934,1745893539053,558.71,0.00038356,30]
[359286935,1745893540209,470.0,0.00038356,30]
[359286936,1745893540261,470.0,0.00038356,30]
[359286937,1745893540814,957.5,0.00038356,30]
[359286938,1745893541376,470.0,0.00038356,30]
[359286939,1745893541997,470.0,0.00038356,30]
[359286940,1745893543128,498.46,0.00038356,30]
[359286941,1745893546503,470.0,0.00038356,30]
[359286942,1745893546539,470.0,0.00038356,30]
[359286943,1745893546933,470.0,0.00038356,30]
[359286944,1745893547336,470.0,0.00038356,30]
[359286945,1745893548097,470.0,0.00038356,30]
[359286946,1745893548476,470.0,0.00038356,30]
[359286947,1745893549320,470.0,0.00038356,30]
[359286948,1745893549597,737.53,0.00038356,30]
[359286949,1745893551044,470.0,0.00038356,30]
[359286950,1745893551576,470.0,0.00038356,30]
[359286951,1745893551613,470.0,0.00038356,30]
[359286952,1745893551974,470.0,0.00038356,30]
[359286953,1745893552900,470.0,0.00038356,30]
[359286954,1745893553492,470.0,0.00038356,30]
[359286955,1745893554472,480.77,0.00038356,30]
[359286956,1745893554538,470.0,0.00038356,30]
[359286957,1745893554950,470.0,0.00038356,30]
[359286958,1745893555251,470.0,0.00038356,30]
[359286959,1745893555536,470.0,0.00038356,30]
[359286960,1745893555634,561.64,0.00038356,30]
[359286961,1745893556874,470.0,0.00038356,30]
[359286962,1745893557227,470.0,0.00038356,30]
[359286963,1745893560909,470.0,0.00038356,30]
[359286964,1745893561880,470.0,0.00038356,30]
[359286965,1745893563237,470.0,0.00038356,30]
[359286966,1745893563674,470.0,0.00038356,30]
[359286967,1745893565868,470.0,0.00038356,30]
[359286968,1745893566167,470.0,0.00038356,30]
[359286969,1745893567080,1754.54056405,8e-05,2]
[359286970,1745893567532,404.89180703,0.00038356,30]
[359286971,1745893568693,470.0,0.00038356,30]
[359286972,1745893569104,470.0,0.00038356,30]
[359286973,1745893569716,412.89273897,0.00038356,30]
[359286974,1745893572674,470.0,0.00038356,30]
[359286975,1745893573278,470.0,0.00038356,30]
[359286976,1745893573670,470.0,0.00038356,30]
[359286977,1745893575314,777.63,0.00038356,30]
[359286978,1745893575816,633.4,0.00038356,30]
[359286979,1745893576175,470.0,0.00038356,30]
[359286980,1745893576952,470.0,0.00038356,30]
[359286981,1745893576998,470.0,0.00038356,30]
[359286982,1745893578618,470.0,0.00038356,30]
[359286983,1745893578949,614.7,0.00038356,30]
[359286984,1745893578991,470.0,0.00038356,30]
[359286985,1745893579337,233.66480908,0.00038356,30]
[359286986,1745893579609,503.24,0.00038356,30]
[359286987,1745893579933,470.0,0.00038356,30]
[359286988,1745893580512,470.0,0.00038356,30]
[359286989,1745893580663,470.0,0.00038356,30]
[359286990,1745893581724,470.0,0.00038356,30]
[359286991,1745893582368,470.0,0.00038356,30]
[359286992,1745893582426,470.0,0.00038356,30]
[359286993,1745893583578,12351.82,0.00038356,30]
[359286994,1745893583904,1075.17,0.00038356,30]
[359286995,1745893584523,470.0,0.00038356,30]